[Event "*** Titled Tuesday Blitz"]
[Site "Chess.com"]
[Date "2021.03.02"]
[Round "3"]
[White "KruHor"]
[Black "BvsN"]
[Result "1/2-1/2"]
[WhiteElo "2524"]
[BlackElo "2315"]
[TimeControl "180+1"]
[EndTime "10:29:14 PST"]
[Termination "Game drawn by repetition"]

1. e4 {[%clk 0:02:58.6]} 1... c5 {[%clk 0:02:59.7]} 2. Nf3 {[%clk 0:02:57.8]}
2... e6 {[%clk 0:03:00.1]} 3. c3 {[%clk 0:02:54.9]} 3... Nf6 {[%clk 0:02:59.7]}
4. e5 {[%clk 0:02:53.2]} 4... Nd5 {[%clk 0:03:00]} 5. d4 {[%clk 0:02:52.5]} 5...
cxd4 {[%clk 0:03:00]} 6. cxd4 {[%clk 0:02:51.9]} 6... d6 {[%clk 0:03:00.6]} 7.
Bc4 {[%clk 0:02:43.4]} 7... Nc6 {[%clk 0:03:00.5]} 8. O-O {[%clk 0:02:38.8]}
8... Nb6 {[%clk 0:03:00.4]} 9. Bd3 {[%clk 0:02:36.2]} 9... Nb4 {[%clk
0:02:59.1]} 10. Be2 {[%clk 0:02:28.3]} 10... Be7 {[%clk 0:02:44.6]} 11. Nc3
{[%clk 0:02:24.4]} 11... O-O {[%clk 0:02:43.8]} 12. exd6 {[%clk 0:02:21.2]}
12... Qxd6 {[%clk 0:02:38.5]} 13. a3 {[%clk 0:02:20]} 13... N4d5 {[%clk
0:02:37.6]} 14. Ne4 {[%clk 0:02:19.2]} 14... Qd8 {[%clk 0:02:36.9]} 15. Bd3
{[%clk 0:02:09.3]} 15... Bd7 {[%clk 0:02:34.6]} 16. Re1 {[%clk 0:02:06.3]} 16...
Rc8 {[%clk 0:02:29.2]} 17. Ne5 {[%clk 0:01:58]} 17... Bc6 {[%clk 0:02:14.3]} 18.
Qh5 {[%clk 0:01:30.3]} 18... g6 {[%clk 0:02:01.2]} 19. Qh6 {[%clk 0:01:22.9]}
19... Bf6 {[%clk 0:01:35.7]} 20. Bg5 {[%clk 0:01:14.6]} 20... Bg7 {[%clk
0:01:10.6]} 21. Qh3 {[%clk 0:00:43.3]} 21... Qc7 {[%clk 0:00:51.4]} 22. Bh6
{[%clk 0:00:31.7]} 22... Qe7 {[%clk 0:00:23.4]} 23. Rad1 {[%clk 0:00:24.5]}
23... Rce8 {[%clk 0:00:13]} 24. Bc1 {[%clk 0:00:21.6]} 24... f6 {[%clk
0:00:10.6]} 25. Nf3 {[%clk 0:00:20.8]} 25... Qf7 {[%clk 0:00:09.7]} 26. Nd6
{[%clk 0:00:19.5]} 26... Qd7 {[%clk 0:00:09.2]} 27. Nxe8 {[%clk 0:00:19]} 27...
Rxe8 {[%clk 0:00:10.1]} 28. Bh6 {[%clk 0:00:17.7]} 28... Qf7 {[%clk 0:00:09.6]}
29. Bxg7 {[%clk 0:00:17.2]} 29... Qxg7 {[%clk 0:00:10.5]} 30. Rxe6 {[%clk
0:00:16.5]} 30... Rf8 {[%clk 0:00:08.7]} 31. Qg3 {[%clk 0:00:15.9]} 31... Bd7
{[%clk 0:00:08]} 32. Ree1 {[%clk 0:00:15.3]} 32... Nc8 {[%clk 0:00:07.3]} 33. h4
{[%clk 0:00:14.6]} 33... Nce7 {[%clk 0:00:07.6]} 34. Bc4 {[%clk 0:00:14.1]}
34... Bc6 {[%clk 0:00:06.7]} 35. Re6 {[%clk 0:00:13.2]} 35... Kh8 {[%clk
0:00:06.5]} 36. Rde1 {[%clk 0:00:12.7]} 36... Nf5 {[%clk 0:00:06.9]} 37. Qh2
{[%clk 0:00:11.3]} 37... Nb6 {[%clk 0:00:05.5]} 38. Bb3 {[%clk 0:00:10.5]} 38...
Bxf3 {[%clk 0:00:04.9]} 39. gxf3 {[%clk 0:00:09.6]} 39... Nxd4 {[%clk
0:00:05.3]} 40. R6e3 {[%clk 0:00:08.7]} 40... Nf5 {[%clk 0:00:04.2]} 41. Re8
{[%clk 0:00:07.7]} 41... Nd7 {[%clk 0:00:03.3]} 42. Qc7 {[%clk 0:00:06.5]} 42...
Nxh4 {[%clk 0:00:02.3]} 43. Rxf8+ {[%clk 0:00:05.9]} 43... Qxf8 {[%clk
0:00:02.4]} 44. Qxd7 {[%clk 0:00:05.2]} 44... Nxf3+ {[%clk 0:00:03.1]} 45. Kf1
{[%clk 0:00:05]} 45... Nxe1 {[%clk 0:00:04]} 46. Kxe1 {[%clk 0:00:04.7]} 46...
h5 {[%clk 0:00:03.8]} 47. Qxb7 {[%clk 0:00:03.3]} 47... h4 {[%clk 0:00:04.1]}
48. Qe4 {[%clk 0:00:02.6]} 48... f5 {[%clk 0:00:03.5]} 49. Qxh4+ {[%clk
0:00:02.4]} 49... Kg7 {[%clk 0:00:03.4]} 50. Qd4+ {[%clk 0:00:02.4]} 50... Kh6
{[%clk 0:00:03.5]} 51. Qh4+ {[%clk 0:00:02.1]} 51... Kg7 {[%clk 0:00:04.2]} 52.
Qd4+ {[%clk 0:00:01.8]} 52... Kh6 {[%clk 0:00:04.7]} 53. Qh4+ {[%clk 0:00:01.8]}
53... Kg7 {[%clk 0:00:05.5]} 1/2-1/2

[Event "*** Titled Tuesday Blitz"]
[Site "Chess.com"]
[Date "2021.03.02"]
[Round "3"]
[White "rychessmaster1"]
[Black "anon219"]
[Result "0-1"]
[WhiteElo "2616"]
[BlackElo "2848"]
[TimeControl "180+1"]
[EndTime "10:29:15 PST"]
[Termination "anon219 won by resignation"]

1. d4 {[%clk 0:03:00.1]} 1... Nf6 {[%clk 0:02:57.6]} 2. Nc3 {[%clk 0:03:00.7]}
2... d5 {[%clk 0:02:56.9]} 3. Bf4 {[%clk 0:03:01.4]} 3... a6 {[%clk 0:02:54.2]}
4. e3 {[%clk 0:03:01.8]} 4... c5 {[%clk 0:02:49.2]} 5. dxc5 {[%clk 0:03:02.1]}
5... e6 {[%clk 0:02:48.5]} 6. Na4 {[%clk 0:03:01.9]} 6... Bxc5 {[%clk
0:02:48.1]} 7. Nxc5 {[%clk 0:03:02.8]} 7... Qa5+ {[%clk 0:02:48.3]} 8. c3 {[%clk
0:03:03.7]} 8... Qxc5 {[%clk 0:02:48.8]} 9. Nf3 {[%clk 0:03:04.5]} 9... Nc6
{[%clk 0:02:32.4]} 10. Bd3 {[%clk 0:03:04.8]} 10... Qe7 {[%clk 0:02:30.5]} 11.
Ne5 {[%clk 0:03:05.5]} 11... Nd7 {[%clk 0:02:28.1]} 12. Nxd7 {[%clk 0:03:04.2]}
12... Bxd7 {[%clk 0:02:26.6]} 13. O-O {[%clk 0:03:04.5]} 13... e5 {[%clk
0:02:25.2]} 14. Bg3 {[%clk 0:03:05.2]} 14... O-O {[%clk 0:02:19.8]} 15. Qb3
{[%clk 0:03:01.3]} 15... Be6 {[%clk 0:02:17]} 16. Qc2 {[%clk 0:02:55.8]} 16...
h5 {[%clk 0:02:13.2]} 17. h3 {[%clk 0:02:51.8]} 17... h4 {[%clk 0:02:12.2]} 18.
Bh2 {[%clk 0:02:51.9]} 18... Rad8 {[%clk 0:02:10.4]} 19. Rad1 {[%clk 0:02:46.8]}
19... f5 {[%clk 0:02:07.5]} 20. Rfe1 {[%clk 0:02:40.2]} 20... Qf6 {[%clk
0:02:03.1]} 21. Bf1 {[%clk 0:02:33.5]} 21... Rd7 {[%clk 0:01:59.4]} 22. a4
{[%clk 0:02:12.9]} 22... g5 {[%clk 0:01:56.9]} 23. Kh1 {[%clk 0:02:12.2]} 23...
Kh8 {[%clk 0:01:42.4]} 24. Be2 {[%clk 0:02:11.4]} 24... g4 {[%clk 0:01:40.9]}
25. Rg1 {[%clk 0:02:09.8]} 25... Rg7 {[%clk 0:01:38.2]} 26. g3 {[%clk
0:02:00.3]} 26... hxg3 {[%clk 0:01:31.7]} 27. Rxg3 {[%clk 0:02:00.9]} 27... f4
{[%clk 0:01:30.1]} 28. exf4 {[%clk 0:01:57.2]} 28... Bf5 {[%clk 0:01:25.2]} 29.
Bd3 {[%clk 0:01:26.9]} 29... exf4 {[%clk 0:01:23.5]} 30. Rg2 {[%clk 0:01:13.4]}
30... Bc8 {[%clk 0:01:15.3]} 31. hxg4 {[%clk 0:01:09.6]} 31... Bxg4 {[%clk
0:01:14.2]} 32. Rxg4 {[%clk 0:00:50.6]} 32... Rxg4 {[%clk 0:01:15.1]} 33. Be2
{[%clk 0:00:50.8]} 33... Rh4 {[%clk 0:00:57.5]} 34. Rxd5 {[%clk 0:00:46.7]}
34... Qh6 {[%clk 0:00:55.2]} 35. Bf3 {[%clk 0:00:45.1]} 35... Rxh2+ {[%clk
0:00:54.9]} 36. Kg1 {[%clk 0:00:46]} 36... Rg8+ {[%clk 0:00:51.3]} 37. Kf1
{[%clk 0:00:46.8]} 37... Rh1+ {[%clk 0:00:51.4]} 38. Ke2 {[%clk 0:00:45.3]}
38... Re8+ {[%clk 0:00:50.7]} 39. Kd2 {[%clk 0:00:43.2]} 39... Rh2 {[%clk
0:00:50.1]} 40. Qd3 {[%clk 0:00:30]} 40... Qh7 {[%clk 0:00:29.4]} 41. Qf1 {[%clk
0:00:16.3]} 41... Ne5 {[%clk 0:00:26.6]} 42. Bg2 {[%clk 0:00:08.3]} 42... f3
{[%clk 0:00:24.7]} 43. Rxe5 {[%clk 0:00:08]} 43... Rxe5 {[%clk 0:00:24.5]} 44.
Bxf3 {[%clk 0:00:08.8]} 44... Qd7+ {[%clk 0:00:21.3]} 45. Kc2 {[%clk 0:00:08.9]}
45... Qf5+ {[%clk 0:00:20.7]} 46. Kb3 {[%clk 0:00:09.2]} 46... Qxf3 {[%clk
0:00:20.7]} 47. Qc4 {[%clk 0:00:10]} 47... Qf8 {[%clk 0:00:16.1]} 48. Qd4 {[%clk
0:00:09.6]} 48... Qg7 {[%clk 0:00:12.6]} 49. Ka3 {[%clk 0:00:09.3]} 49... Re8
{[%clk 0:00:10]} 50. f4 {[%clk 0:00:08.8]} 50... Qxd4 {[%clk 0:00:09.8]} 0-1

[Event "*** Titled Tuesday Blitz"]
[Site "Chess.com"]
[Date "2021.03.02"]
[Round "3"]
[White "VladaSviridova"]
[Black "frenchpin"]
[Result "0-1"]
[WhiteElo "2233"]
[BlackElo "2503"]
[TimeControl "180+1"]
[EndTime "10:29:15 PST"]
[Termination "frenchpin won on time"]

1. d4 {[%clk 0:03:00.9]} 1... e6 {[%clk 0:03:00.9]} 2. c4 {[%clk 0:02:59.5]}
2... Nf6 {[%clk 0:03:00]} 3. Nf3 {[%clk 0:02:59.3]} 3... d5 {[%clk 0:03:00.5]}
4. Nc3 {[%clk 0:02:58.8]} 4... dxc4 {[%clk 0:03:00.7]} 5. Bg5 {[%clk 0:02:58]}
5... Bb4 {[%clk 0:03:00]} 6. e4 {[%clk 0:02:58]} 6... c5 {[%clk 0:02:59.7]} 7.
Bxc4 {[%clk 0:02:56.9]} 7... cxd4 {[%clk 0:03:00]} 8. Nxd4 {[%clk 0:02:56.7]}
8... Qa5 {[%clk 0:03:00.5]} 9. Bd2 {[%clk 0:02:54.3]} 9... O-O {[%clk
0:02:54.4]} 10. Nb3 {[%clk 0:02:16.4]} 10... Qc7 {[%clk 0:02:50.7]} 11. Be2
{[%clk 0:02:01.8]} 11... Bxc3 {[%clk 0:02:35.6]} 12. Bxc3 {[%clk 0:01:57.8]}
12... Nxe4 {[%clk 0:02:35.8]} 13. Rc1 {[%clk 0:01:55.1]} 13... Nxc3 {[%clk
0:02:35.3]} 14. Rxc3 {[%clk 0:01:54.7]} 14... Nc6 {[%clk 0:02:35.9]} 15. O-O
{[%clk 0:01:52.4]} 15... e5 {[%clk 0:02:34.2]} 16. Bf3 {[%clk 0:01:49.4]} 16...
Bf5 {[%clk 0:02:30.9]} 17. Bxc6 {[%clk 0:01:38]} 17... bxc6 {[%clk 0:02:31.8]}
18. Qf3 {[%clk 0:01:38.2]} 18... Bd7 {[%clk 0:02:19.5]} 19. Nc5 {[%clk
0:01:38.1]} 19... Rfc8 {[%clk 0:02:09.5]} 20. Rfc1 {[%clk 0:01:29.7]} 20... Be8
{[%clk 0:02:06.2]} 21. b3 {[%clk 0:01:19.3]} 21... Qe7 {[%clk 0:02:05.7]} 22. h3
{[%clk 0:01:08.4]} 22... a5 {[%clk 0:02:01.8]} 23. Re1 {[%clk 0:00:53.1]} 23...
Rab8 {[%clk 0:01:51.7]} 24. Qe4 {[%clk 0:00:46.9]} 24... f6 {[%clk 0:01:41]} 25.
Qg4 {[%clk 0:00:42.3]} 25... Bg6 {[%clk 0:01:34.8]} 26. h4 {[%clk 0:00:24.8]}
26... f5 {[%clk 0:01:21.4]} 27. Qa4 {[%clk 0:00:19.6]} 27... Rb5 {[%clk
0:01:11]} 28. g3 {[%clk 0:00:15.4]} 28... Rxc5 {[%clk 0:01:08.2]} 29. Rxc5
{[%clk 0:00:14.1]} 29... Qxc5 {[%clk 0:01:09.1]} 30. h5 {[%clk 0:00:11.1]} 30...
Bxh5 {[%clk 0:01:07.5]} 31. Qh4 {[%clk 0:00:11.3]} 31... Bf7 {[%clk 0:01:05.5]}
32. Qg5 {[%clk 0:00:10.3]} 32... e4 {[%clk 0:00:59.4]} 33. Rxe4 {[%clk
0:00:09.9]} 33... h6 {[%clk 0:00:54.2]} 34. Qe7 {[%clk 0:00:07.6]} 34... fxe4
{[%clk 0:00:52.7]} 35. Qxc5 {[%clk 0:00:06.5]} 35... a4 {[%clk 0:00:46.4]} 36.
bxa4 {[%clk 0:00:05.9]} 36... Bd5 {[%clk 0:00:43]} 37. a5 {[%clk 0:00:05.7]}
37... Ra8 {[%clk 0:00:42.6]} 38. a4 {[%clk 0:00:05.3]} 38... Ra6 {[%clk
0:00:40.2]} 39. g4 {[%clk 0:00:05.1]} 39... Kf7 {[%clk 0:00:38.9]} 40. Kh2
{[%clk 0:00:05.2]} 40... Ke6 {[%clk 0:00:37.7]} 41. Kg3 {[%clk 0:00:05.7]} 41...
g5 {[%clk 0:00:37.8]} 42. Qb4 {[%clk 0:00:04.8]} 42... Ke5 {[%clk 0:00:31.2]}
43. Qe7+ {[%clk 0:00:04.4]} 43... Kd4 {[%clk 0:00:28.8]} 44. Qf6+ {[%clk
0:00:04.7]} 44... Kd3 {[%clk 0:00:25]} 45. Qxh6 {[%clk 0:00:05.1]} 45... Rxa5
{[%clk 0:00:24.9]} 46. Qxg5 {[%clk 0:00:05.3]} 46... Rxa4 {[%clk 0:00:24.9]} 47.
Qe3+ {[%clk 0:00:05.2]} 47... Kc4 {[%clk 0:00:22.4]} 48. g5 {[%clk 0:00:05.1]}
48... Rb4 {[%clk 0:00:21.1]} 49. Qe2+ {[%clk 0:00:04.1]} 49... Kc5 {[%clk
0:00:20.3]} 50. g6 {[%clk 0:00:03.9]} 50... Rb3+ {[%clk 0:00:19.5]} 51. Kh4
{[%clk 0:00:04.2]} 51... Rf3 {[%clk 0:00:19.5]} 52. g7 {[%clk 0:00:03.5]} 52...
Rf6 {[%clk 0:00:18.6]} 53. Qc2+ {[%clk 0:00:02.8]} 53... Kd6 {[%clk 0:00:18]}
54. Qc3 {[%clk 0:00:02.3]} 54... Rg6 {[%clk 0:00:16.6]} 55. Kh5 {[%clk
0:00:01.7]} 55... Rg1 {[%clk 0:00:16.2]} 0-1

[Event "*** Titled Tuesday Blitz"]
[Site "Chess.com"]
[Date "2021.03.02"]
[Round "3"]
[White "tgpgoat"]
[Black "SHIVACalypso"]
[Result "0-1"]
[WhiteElo "2096"]
[BlackElo "2341"]
[TimeControl "180+1"]
[EndTime "10:29:15 PST"]
[Termination "SHIVACalypso won on time"]

1. d4 {[%clk 0:02:58.3]} 1... e6 {[%clk 0:02:59.1]} 2. Nf3 {[%clk 0:02:57.8]}
2... Nf6 {[%clk 0:03:00]} 3. Bg5 {[%clk 0:02:57.4]} 3... d5 {[%clk 0:02:59.3]}
4. Nbd2 {[%clk 0:02:48.3]} 4... c5 {[%clk 0:02:56.2]} 5. e4 {[%clk 0:02:41.3]}
5... Be7 {[%clk 0:02:48.2]} 6. e5 {[%clk 0:02:32.6]} 6... Nfd7 {[%clk 0:02:48]}
7. Bxe7 {[%clk 0:02:32.1]} 7... Qxe7 {[%clk 0:02:48.9]} 8. c3 {[%clk 0:02:31.8]}
8... Nc6 {[%clk 0:02:43.8]} 9. Bd3 {[%clk 0:02:30.2]} 9... f6 {[%clk 0:02:42.6]}
10. exf6 {[%clk 0:02:28.9]} 10... Nxf6 {[%clk 0:02:43.5]} 11. O-O {[%clk
0:02:26.3]} 11... O-O {[%clk 0:02:41]} 12. Re1 {[%clk 0:02:24.5]} 12... cxd4
{[%clk 0:02:40.1]} 13. cxd4 {[%clk 0:02:24]} 13... Bd7 {[%clk 0:02:32.5]} 14.
Nb3 {[%clk 0:02:21.7]} 14... b6 {[%clk 0:02:29.2]} 15. Ne5 {[%clk 0:02:16.6]}
15... Qd6 {[%clk 0:02:21.3]} 16. Qe2 {[%clk 0:01:44.6]} 16... Rae8 {[%clk
0:02:13.5]} 17. Bb5 {[%clk 0:01:39.2]} 17... Ne4 {[%clk 0:02:01.8]} 18. f3
{[%clk 0:01:14.9]} 18... Nxd4 {[%clk 0:01:16.2]} 19. Nxd4 {[%clk 0:01:07.9]}
19... Qxe5 {[%clk 0:01:14.4]} 20. Nb3 {[%clk 0:01:00.3]} 20... Bxb5 {[%clk
0:01:10.6]} 21. Qxb5 {[%clk 0:00:59.8]} 21... Nd6 {[%clk 0:00:18.3]} 22. Qd7
{[%clk 0:00:52.3]} 22... Qf4 {[%clk 0:00:12.2]} 23. Qxa7 {[%clk 0:00:34.7]}
23... Nc4 {[%clk 0:00:10.5]} 24. Qd7 {[%clk 0:00:25.2]} 24... Qf6 {[%clk
0:00:06.4]} 25. Re2 {[%clk 0:00:18.8]} 25... Re7 {[%clk 0:00:06.6]} 26. Qc6
{[%clk 0:00:17]} 26... Rfe8 {[%clk 0:00:05.8]} 27. Rae1 {[%clk 0:00:16.3]} 27...
Kf7 {[%clk 0:00:04.3]} 28. a3 {[%clk 0:00:12.6]} 28... h6 {[%clk 0:00:03.9]} 29.
Nc1 {[%clk 0:00:12.6]} 29... Qd4+ {[%clk 0:00:03.3]} 30. Kh1 {[%clk 0:00:12.7]}
30... Qc5 {[%clk 0:00:02.8]} 31. Qxc5 {[%clk 0:00:11.6]} 31... bxc5 {[%clk
0:00:03.7]} 32. Nd3 {[%clk 0:00:11.7]} 32... Rb7 {[%clk 0:00:03]} 33. Nxc5
{[%clk 0:00:10]} 33... Rb6 {[%clk 0:00:02.1]} 34. b4 {[%clk 0:00:09]} 34... Rc6
{[%clk 0:00:02.4]} 35. Ra2 {[%clk 0:00:07.5]} 35... Nb6 {[%clk 0:00:02.5]} 36.
a4 {[%clk 0:00:06.8]} 36... Ra8 {[%clk 0:00:02.4]} 37. a5 {[%clk 0:00:07]} 37...
Nc8 {[%clk 0:00:02.5]} 38. Rc2 {[%clk 0:00:06.5]} 38... Na7 {[%clk 0:00:02.5]}
39. Rec1 {[%clk 0:00:05.8]} 39... Nb5 {[%clk 0:00:02.7]} 40. Re2 {[%clk
0:00:03.9]} 40... Rac8 {[%clk 0:00:02.4]} 41. Rce1 {[%clk 0:00:03.8]} 41... Nd4
{[%clk 0:00:02.4]} 42. Re5 {[%clk 0:00:03.3]} 42... Nb5 {[%clk 0:00:02.9]} 43.
Rxe6 {[%clk 0:00:02.6]} 43... Rxe6 {[%clk 0:00:02.9]} 44. Rxe6 {[%clk
0:00:00.6]} 44... Rxc5 {[%clk 0:00:03.2]} 0-1

[Event "*** Titled Tuesday Blitz"]
[Site "Chess.com"]
[Date "2021.03.02"]
[Round "3"]
[White "Alniro4"]
[Black "Frogo47"]
[Result "0-1"]
[WhiteElo "2308"]
[BlackElo "2531"]
[TimeControl "180+1"]
[EndTime "10:29:16 PST"]
[Termination "Frogo47 won on time"]

1. e4 {[%clk 0:03:00.9]} 1... c5 {[%clk 0:02:53.4]} 2. Nf3 {[%clk 0:02:59]} 2...
d6 {[%clk 0:02:53.6]} 3. d4 {[%clk 0:02:57.9]} 3... cxd4 {[%clk 0:02:53.7]} 4.
Nxd4 {[%clk 0:02:57.7]} 4... Nf6 {[%clk 0:02:54.2]} 5. Nc3 {[%clk 0:02:57.9]}
5... a6 {[%clk 0:02:54.8]} 6. Be3 {[%clk 0:02:57.9]} 6... e5 {[%clk 0:02:54.4]}
7. Nb3 {[%clk 0:02:57.2]} 7... Be6 {[%clk 0:02:54.9]} 8. Qd2 {[%clk 0:02:57.1]}
8... Nbd7 {[%clk 0:02:53.9]} 9. O-O-O {[%clk 0:02:54.9]} 9... Rc8 {[%clk
0:02:54.1]} 10. f3 {[%clk 0:02:53.2]} 10... h5 {[%clk 0:02:53.8]} 11. Kb1 {[%clk
0:02:50]} 11... Be7 {[%clk 0:02:53.2]} 12. Be2 {[%clk 0:02:40.3]} 12... b5
{[%clk 0:02:47.7]} 13. g3 {[%clk 0:02:24.4]} 13... b4 {[%clk 0:02:41.4]} 14. Nd5
{[%clk 0:02:23.1]} 14... Nxd5 {[%clk 0:02:35.4]} 15. exd5 {[%clk 0:02:20.4]}
15... Bf5 {[%clk 0:02:36]} 16. Bd3 {[%clk 0:02:19.6]} 16... Bxd3 {[%clk
0:02:36.5]} 17. Qxd3 {[%clk 0:02:18]} 17... a5 {[%clk 0:02:37.4]} 18. Qb5 {[%clk
0:02:07.5]} 18... Ra8 {[%clk 0:02:32]} 19. Nd2 {[%clk 0:01:49.1]} 19... O-O
{[%clk 0:02:25.3]} 20. Nc4 {[%clk 0:01:45]} 20... Qc7 {[%clk 0:02:17.7]} 21. Qc6
{[%clk 0:01:42.8]} 21... Rfc8 {[%clk 0:02:16.2]} 22. Qxc7 {[%clk 0:01:39.8]}
22... Rxc7 {[%clk 0:02:17.1]} 23. Nd2 {[%clk 0:01:38.2]} 23... f5 {[%clk
0:02:10.2]} 24. h4 {[%clk 0:01:33.7]} 24... a4 {[%clk 0:02:05.8]} 25. Bg5 {[%clk
0:01:11.3]} 25... Nf6 {[%clk 0:01:55.8]} 26. Bxf6 {[%clk 0:01:06.1]} 26... Bxf6
{[%clk 0:01:56.7]} 27. b3 {[%clk 0:01:05]} 27... axb3 {[%clk 0:01:52.7]} 28.
Nxb3 {[%clk 0:01:01.7]} 28... Rca7 {[%clk 0:01:48.5]} 29. Nc1 {[%clk 0:01:00.9]}
29... Ra3 {[%clk 0:01:35.4]} 30. Rd3 {[%clk 0:00:58.5]} 30... e4 {[%clk
0:01:25.4]} 31. fxe4 {[%clk 0:00:57.6]} 31... fxe4 {[%clk 0:01:24.9]} 32. Rb3
{[%clk 0:00:56.9]} 32... Rxb3+ {[%clk 0:01:19.9]} 33. cxb3 {[%clk 0:00:54.3]}
33... Bc3 {[%clk 0:01:16.4]} 34. Ne2 {[%clk 0:00:49.9]} 34... Be5 {[%clk
0:01:16]} 35. Re1 {[%clk 0:00:47.2]} 35... Ra5 {[%clk 0:01:13.2]} 36. Nf4 {[%clk
0:00:46.4]} 36... Bxf4 {[%clk 0:01:11.8]} 37. gxf4 {[%clk 0:00:45.8]} 37... Rxd5
{[%clk 0:01:11]} 38. Rxe4 {[%clk 0:00:45.6]} 38... Rb5 {[%clk 0:01:10]} 39. Kc2
{[%clk 0:00:44.7]} 39... Kf7 {[%clk 0:01:09.5]} 40. Kd3 {[%clk 0:00:43.9]} 40...
Ra5 {[%clk 0:01:02.5]} 41. Re2 {[%clk 0:00:43.5]} 41... Rc5 {[%clk 0:01:02.1]}
42. Re4 {[%clk 0:00:41]} 42... Ra5 {[%clk 0:01:00.5]} 43. Rxb4 {[%clk
0:00:38.9]} 43... Rxa2 {[%clk 0:01:00.3]} 44. Rb7+ {[%clk 0:00:33.3]} 44... Kf6
{[%clk 0:01:00.1]} 45. Rb6 {[%clk 0:00:32]} 45... Ke6 {[%clk 0:00:58.2]} 46. Rb7
{[%clk 0:00:30.8]} 46... g6 {[%clk 0:00:58]} 47. Rg7 {[%clk 0:00:24.8]} 47...
Kf5 {[%clk 0:00:52.3]} 48. Rd7 {[%clk 0:00:23.4]} 48... Ra6 {[%clk 0:00:50.9]}
49. Rf7+ {[%clk 0:00:20.2]} 49... Kg4 {[%clk 0:00:50.2]} 50. Rg7 {[%clk
0:00:19.7]} 50... d5 {[%clk 0:00:46.7]} 51. Kd4 {[%clk 0:00:18.5]} 51... Kxh4
{[%clk 0:00:43.7]} 52. Kxd5 {[%clk 0:00:17.7]} 52... Kg4 {[%clk 0:00:44]} 53.
Ke4 {[%clk 0:00:12.7]} 53... Re6+ {[%clk 0:00:38.7]} 54. Kd5 {[%clk 0:00:11.4]}
54... Rb6 {[%clk 0:00:38.8]} 55. Ke4 {[%clk 0:00:03.9]} 55... Rb4+ {[%clk
0:00:38.2]} 56. Ke5 {[%clk 0:00:01.9]} 56... Rb5+ {[%clk 0:00:36.5]} 57. Ke4
{[%clk 0:00:01.2]} 57... Rb6 {[%clk 0:00:23.8]} 0-1

[Event "*** Titled Tuesday Blitz"]
[Site "Chess.com"]
[Date "2021.03.02"]
[Round "3"]
[White "KhamzinOlzhas"]
[Black "Manukyan_Artak"]
[Result "0-1"]
[WhiteElo "2520"]
[BlackElo "2340"]
[TimeControl "180+1"]
[EndTime "10:29:17 PST"]
[Termination "Manukyan_Artak won on time"]

1. d4 {[%clk 0:03:00.9]} 1... Nf6 {[%clk 0:02:59.2]} 2. c4 {[%clk 0:03:00.7]}
2... e6 {[%clk 0:02:59.1]} 3. Nc3 {[%clk 0:03:00.4]} 3... Bb4 {[%clk 0:02:57.6]}
4. Nf3 {[%clk 0:03:00.9]} 4... d5 {[%clk 0:02:56.9]} 5. Qa4+ {[%clk 0:02:53.6]}
5... Nc6 {[%clk 0:02:55.5]} 6. e3 {[%clk 0:02:54.2]} 6... O-O {[%clk 0:02:54.8]}
7. Qc2 {[%clk 0:02:53.9]} 7... a5 {[%clk 0:02:45.8]} 8. Bd2 {[%clk 0:02:50.9]}
8... Re8 {[%clk 0:02:38.1]} 9. a3 {[%clk 0:02:46.4]} 9... Bxc3 {[%clk
0:02:34.9]} 10. Bxc3 {[%clk 0:02:44.4]} 10... Ne4 {[%clk 0:02:35.4]} 11. Bd3
{[%clk 0:02:42.5]} 11... f5 {[%clk 0:02:34.9]} 12. O-O {[%clk 0:02:40]} 12... a4
{[%clk 0:02:32.9]} 13. Be1 {[%clk 0:02:32.2]} 13... h6 {[%clk 0:02:25.6]} 14.
cxd5 {[%clk 0:02:11.8]} 14... exd5 {[%clk 0:02:24.6]} 15. Bb5 {[%clk 0:02:12.1]}
15... Bd7 {[%clk 0:02:23.8]} 16. Bxa4 {[%clk 0:02:12.7]} 16... Nxd4 {[%clk
0:02:18.8]} 17. exd4 {[%clk 0:02:13.6]} 17... Bxa4 {[%clk 0:02:18]} 18. b3
{[%clk 0:02:13.7]} 18... Bb5 {[%clk 0:02:17.6]} 19. Ne5 {[%clk 0:02:07.7]} 19...
c5 {[%clk 0:01:52.3]} 20. f3 {[%clk 0:02:05.4]} 20... Bxf1 {[%clk 0:01:51.6]}
21. fxe4 {[%clk 0:02:02.7]} 21... Ba6 {[%clk 0:01:48.8]} 22. exf5 {[%clk
0:02:03]} 22... cxd4 {[%clk 0:01:47.4]} 23. Bg3 {[%clk 0:02:03.6]} 23... Qf6
{[%clk 0:01:38.7]} 24. Re1 {[%clk 0:01:52.2]} 24... d3 {[%clk 0:01:37]} 25. Qc5
{[%clk 0:01:45.1]} 25... Rad8 {[%clk 0:01:28.3]} 26. Qd4 {[%clk 0:01:45.4]}
26... Qxf5 {[%clk 0:01:24.6]} 27. h3 {[%clk 0:01:43.7]} 27... Re6 {[%clk
0:00:42.7]} 28. Kh2 {[%clk 0:01:36.3]} 28... Rde8 {[%clk 0:00:35.9]} 29. Re3
{[%clk 0:00:57]} 29... d2 {[%clk 0:00:34.7]} 30. Qxd5 {[%clk 0:00:54.6]} 30...
Kh7 {[%clk 0:00:25.8]} 31. Qxd2 {[%clk 0:00:30.9]} 31... Rxe5 {[%clk 0:00:25.4]}
32. Bxe5 {[%clk 0:00:31.8]} 32... Rxe5 {[%clk 0:00:25.4]} 33. Rf3 {[%clk
0:00:32.5]} 33... Qe4 {[%clk 0:00:21.9]} 34. a4 {[%clk 0:00:30.5]} 34... b6
{[%clk 0:00:17.7]} 35. Qd7 {[%clk 0:00:24.4]} 35... Re7 {[%clk 0:00:16.9]} 36.
Qd8 {[%clk 0:00:21]} 36... Bb7 {[%clk 0:00:15]} 37. Rg3 {[%clk 0:00:19.5]} 37...
Re6 {[%clk 0:00:13.4]} 38. Qc7 {[%clk 0:00:17.3]} 38... Rg6 {[%clk 0:00:13.4]}
39. Rxg6 {[%clk 0:00:15.2]} 39... Kxg6 {[%clk 0:00:14.3]} 40. Qxb6+ {[%clk
0:00:15]} 40... Kh7 {[%clk 0:00:14]} 41. Qf2 {[%clk 0:00:15.5]} 41... Qe5+
{[%clk 0:00:13.1]} 42. Qg3 {[%clk 0:00:16]} 42... Qxg3+ {[%clk 0:00:12.7]} 43.
Kxg3 {[%clk 0:00:16.9]} 43... Kg6 {[%clk 0:00:13.3]} 44. Kf4 {[%clk 0:00:14.3]}
44... Bxg2 {[%clk 0:00:10.5]} 45. h4 {[%clk 0:00:15]} 45... Kf6 {[%clk
0:00:10.4]} 46. b4 {[%clk 0:00:15.4]} 46... g5+ {[%clk 0:00:10.7]} 47. hxg5+
{[%clk 0:00:16]} 47... hxg5+ {[%clk 0:00:11.6]} 48. Ke3 {[%clk 0:00:15.4]} 48...
Bc6 {[%clk 0:00:11.6]} 49. b5 {[%clk 0:00:15.7]} 49... Bd7 {[%clk 0:00:11.7]}
50. Kd4 {[%clk 0:00:16.2]} 50... g4 {[%clk 0:00:11.4]} 51. Kc5 {[%clk 0:00:04]}
51... g3 {[%clk 0:00:10.4]} 0-1